bitfinex-derivatives/quotes_SOLF0:USTF0_20250623
["timestamp","ask_amount","ask_price","bid_price","bid_amount"]
[1750685589482,7.5114,133.09,133.05,2.4591]
[1750685589686,7.512,133.08,133.05,2.4591]
[1750685589886,19.79380205,133.12,133.05,2.4591]
[1750685590395,7.5126,133.07,133.04,61.9992]
[1750685590587,19.79380205,133.1,133.04,2.4855]
[1750685591189,7.5122,133.08,133.04,2.4855]
[1750685591495,19.79380205,133.11,133.04,2.4855]
[1750685591697,7.5122,133.07,133.04,9.9991]
[1750685591896,81.79380205,133.13,133.04,22.27930205]
[1750685592096,81.79380205,133.13,133.05,52.98]
[1750685592097,62.0,133.13,133.05,52.98]
[1750685592395,62.0,133.13,133.05,55.2554]
[1750685593087,62.0,133.13,133.06,19.79380205]
[1750685593293,62.0,133.13,133.09,7.511]
[1750685593487,62.0,133.13,133.06,19.79380205]
[1750685593695,9.02,133.13,133.08,19.79380205]
[1750685593999,72.75380205,133.21,133.12,19.79380205]
[1750685594393,52.96,133.21,133.14,19.79380205]
[1750685594593,52.96,133.21,133.15,2.2754]
[1750685594890,72.75380205,133.25,133.16,19.79380205]
[1750685595296,72.75380205,133.25,133.15,2.2754]
[1750685595297,19.79380205,133.21,133.15,2.2754]
[1750685595490,72.75380205,133.21,133.14,7.5079]
[1750685595691,72.75380205,133.21,133.13,52.96]
[1750685595891,7.5099,133.12,133.09,2.4529]
[1750685596096,52.96,133.16,133.09,2.4529]
[1750685596603,7.5092,133.13,133.09,2.4529]
[1750685596800,19.79380205,133.15,133.09,2.4529]
[1750685596994,19.79380205,133.15,133.06,704.4131]
[1750685597193,52.96,133.16,133.06,55.4331]
[1750685597400,19.79380205,133.14,133.06,2.4731]
[1750685597601,19.79380205,133.13,133.06,2.4731]
[1750685598001,7.5131,133.06,133.04,19.79380205]
[1750685598205,52.96,133.11,133.03,55.4074]
[1750685598905,7.5128,133.06,133.03,55.4074]
[1750685599098,72.75380205,133.11,133.02,2.4731]
[1750685599294,7.5137,133.05,133.02,2.4731]
[1750685599500,52.96,133.11,133.02,22.26690205]
[1750685599897,7.5129,133.06,133.02,29.78150205]
[1750685600098,5.76790549,133.1,133.02,22.26690205]
[1750685600296,7.5131,133.06,133.02,29.78160205]
[1750685600905,5.76790549,133.09,133.02,2.4731]
[1750685601104,5.76790549,133.09,133.0,57.6873]
[1750685601404,19.79380205,133.1,133.0,60.1278]
[1750685601405,25.5637246,133.08,133.0,60.1278]
[1750685601597,19.79380205,133.08,133.0,79.92160205]
[1750685601904,7.5137,133.05,133.02,19.79380205]
[1750685602210,5.77050217,133.1,133.02,19.79380205]
[1750685602506,7.5131,133.06,133.02,19.79380205]
[1750685602706,5.77050217,133.1,133.02,19.79380205]
[1750685602910,25.56430422,133.1,133.0,60.1278]
[1750685603095,25.56430422,133.1,133.0,79.92160205]
[1750685603297,5.77050217,133.1,133.02,19.79380205]
[1750685603501,52.96,133.11,133.05,7.5132]
[1750685603810,52.96,133.11,133.02,19.79380205]
[1750685604005,19.79380205,133.08,133.0,7.1678]
[1750685604201,52.96,133.07,133.0,7.1678]
[1750685604506,7.5142,133.04,133.0,26.96160205]
[1750685604808,52.96,133.13,133.02,19.79380205]
[1750685605005,5.77035225,133.12,133.05,19.79380205]
[1750685605210,5.77035225,133.12,133.01,52.96]
[1750685605211,5.76985536,133.12,133.03,19.79380205]
[1750685605508,7.5113,133.09,133.05,7.513]
[1750685606107,7.5107,133.1,133.05,19.79380205]
[1750685606306,7.5107,133.1,133.06,2.397]
[1750685606612,52.96,133.13,133.07,7.5121]
[1750685607203,52.98,133.15,133.07,19.79380205]
[1750685607409,52.98,133.15,133.07,4.7857]
[1750685607701,52.98,133.15,133.08,7.5113]
[1750685607901,15.0117,133.19,133.09,19.79380205]
[1750685608101,19.79380205,133.22,133.11,19.79380205]
[1750685608308,5.772538,133.22,133.11,19.79380205]
[1750685608612,19.79380205,133.19,133.1,19.79380205]
[1750685608911,7.5084,133.14,133.1,27.30380205]
[1750685609111,57.5449,133.18,133.1,19.79380205]
[1750685609309,57.5449,133.18,133.07,4.7857]
[1750685609310,25.565546,133.17,133.07,24.57950205]
[1750685609813,5.77174395,133.17,133.09,19.79380205]
[1750685610312,7.5088,133.13,133.09,19.79380205]
[1750685610506,8.86442809,133.17,133.07,24.57950205]
[1750685610707,7.5099,133.12,133.07,32.09130205]
[1750685610902,7.5099,133.12,133.07,24.57950205]
[1750685611307,52.96,133.14,133.07,32.09150205]
[1750685612012,52.96,133.14,133.07,24.57950205]
[1750685612410,52.96,133.14,133.07,4.7857]
[1750685612607,52.96,133.14,133.07,24.57950205]
[1750685612910,52.96,133.18,133.13,27.30240205]
[1750685613209,55.4407,133.22,133.15,19.79380205]
[1750685613410,55.4407,133.22,133.11,19.79380205]
[1750685613411,13.29419527,133.21,133.18,7.5059]
[1750685613612,52.96,133.22,133.17,19.79380205]
[1750685614017,57.8072,133.26,133.19,19.79380205]
[1750685614214,5.78773561,133.25,133.19,19.79380205]
[1750685614420,5.78773561,133.26,133.21,19.79380205]
[1750685614923,5.78773561,133.26,133.2,19.79380205]
[1750685615114,5.78773561,133.26,133.18,2.3435]
[1750685615313,25.58153766,133.25,133.17,52.96]
[1750685615507,7.5046,133.21,133.16,27.30060205]
[1750685615809,5.78773561,133.26,133.2,19.79380205]
[1750685616215,7.5028,133.24,133.2,19.79380205]
[1750685616515,5.79410878,133.26,133.17,52.96]
[1750685616712,52.96,133.27,133.22,19.79380205]
[1750685617819,52.96,133.27,133.17,59.92360827]
[1750685618012,52.96,133.27,133.22,19.79380205]
[1750685618212,52.96,133.27,133.17,52.96]
[1750685618721,52.96,133.27,133.2,19.79380205]
[1750685619018,5.78322455,133.26,133.19,19.79380205]
[1750685619216,7.5035,133.23,133.19,27.29880205]
[1750685619419,52.96,133.27,133.17,52.96]
[1750685619617,19.79380205,133.22,133.15,2.3435]
[1750685619828,51.98,133.21,133.15,2.3435]
[1750685620115,51.98,133.24,133.18,19.79380205]
[1750685620319,7.5041,133.22,133.18,27.29960205]
[1750685620721,51.98,133.24,133.18,19.79380205]
[1750685620918,168.92,133.26,133.2,19.79380205]
[1750685621317,51.98,133.27,133.2,19.79380205]
[1750685621718,51.98,133.27,133.18,51.98]
[1750685622022,51.98,133.27,133.21,19.79380205]
[1750685622216,51.98,133.27,133.19,19.79380205]
[1750685622415,51.98,133.27,133.17,19.79380205]
[1750685622416,71.77380205,133.27,133.17,19.79380205]
[1750685622614,71.77380205,133.27,133.18,7.5057]
[1750685622924,71.77380205,133.27,133.17,19.79380205]
[1750685623110,71.77380205,133.27,133.19,19.79380205]
[1750685623111,51.98,133.27,133.19,19.79380205]
[1750685623315,51.98,133.27,133.21,19.79380205]
[1750685623509,51.98,133.27,133.15,116.3035]
[1750685623510,51.98,133.27,133.19,19.79380205]
[1750685623716,51.98,133.27,133.15,116.3035]
[1750685623717,19.79380205,133.26,133.15,62.0]
[1750685623916,19.79380205,133.26,133.15,19.79380205]
[1750685624520,19.79380205,133.24,133.14,7.0883]
[1750685624821,19.79380205,133.18,133.08,19.79380205]
[1750685625021,51.96,133.17,133.08,19.79380205]
[1750685625420,19.79380205,133.16,133.08,19.79380205]
[1750685625623,19.79380205,133.16,133.08,7.5113]
[1750685625924,19.79380205,133.16,133.07,4.7645]
[1750685626322,7.5105,133.11,133.07,12.2764]
[1750685626622,51.96,133.13,133.07,4.7645]
[1750685626825,51.96,133.13,133.08,19.79380205]
[1750685627325,59.4692,133.13,133.08,19.79380205]
[1750685627529,51.96,133.13,133.08,19.79380205]
[1750685627726,51.96,133.13,133.07,4.7645]
[1750685627919,7.5096,133.12,133.07,4.7645]
[1750685628121,51.96,133.13,133.07,4.7645]
[1750685628721,2.3099,133.16,133.1,19.79380205]
[1750685628722,51.96,133.16,133.1,19.79380205]
[1750685628927,22.10370205,133.21,133.14,7.508]
[1750685629238,22.10370205,133.21,133.07,4.7645]
[1750685629239,51.96,133.2,133.12,19.79380205]
[1750685629425,7.5062,133.18,133.15,7.5076]
[1750685629625,51.96,133.2,133.12,19.79380205]
[1750685629823,51.96,133.2,133.14,19.79380205]
[1750685630025,54.3024,133.23,133.16,19.79380205]
[1750685630221,2.3424,133.23,133.16,19.79380205]
[1750685630430,51.98,133.23,133.18,19.79380205]
[1750685630621,648.48,133.24,133.18,19.79380205]
[1750685631026,648.48,133.24,133.16,19.79380205]
[1750685631427,648.48,133.24,133.18,19.79380205]
[1750685631625,648.48,133.24,133.17,19.79380205]
[1750685632427,648.48,133.24,133.14,4.7649]
[1750685632628,648.48,133.24,133.16,19.79380205]
[1750685633129,7.5043,133.22,133.16,81.79380205]
[1750685633329,648.48,133.24,133.16,81.79380205]
[1750685633529,7.5042,133.22,133.19,7.5051]
[1750685633720,648.48,133.24,133.17,19.79380205]
[1750685634124,7.5041,133.22,133.19,7.5054]
[1750685634319,7.5041,133.22,133.16,62.0]
[1750685634526,648.48,133.24,133.14,4.7649]
[1750685634725,7.5053,133.2,133.17,7.5064]
[1750685635032,648.48,133.24,133.15,19.79380205]
[1750685635226,648.48,133.24,133.13,51.98]
[1750685635425,648.48,133.24,133.15,19.79380205]
[1750685635722,7.5042,133.22,133.18,7.5056]
[1750685636032,648.48,133.24,133.17,19.79380205]
[1750685636423,7.5038,133.22,133.17,19.79380205]
[1750685636631,648.48,133.24,133.17,19.79380205]
[1750685636930,51.98,133.26,133.19,19.79380205]
[1750685637239,224.0054,133.29,133.21,19.79380205]
[1750685637535,2.5054,133.29,133.23,19.79380205]
[1750685638033,10.0057,133.29,133.25,7.5017]
[1750685638330,51.96,133.3,133.26,7.5011]
[1750685638528,51.96,133.3,133.23,19.79380205]
[1750685638729,4.9217,133.33,133.27,19.79380205]
[1750685638730,2.445,133.33,133.27,19.79380205]
[1750685639030,51.96,133.35,133.27,19.79380205]
[1750685639531,51.96,133.35,133.29,19.79380205]
[1750685639926,51.96,133.35,133.33,7.4972]
[1750685640133,19.79380205,133.43,133.33,19.79380205]
[1750685640330,19.79380205,133.35,133.26,7.1813]
[1750685640527,19.79380205,133.3,133.17,6.96360827]
[1750685640732,220.88,133.34,133.16,4.7787]
[1750685640733,19.79380205,133.28,133.16,4.7787]
[1750685641029,56.7562,133.29,133.16,4.7787]
[1750685641030,51.96,133.27,133.18,19.79380205]
[1750685641229,71.75380205,133.27,133.16,4.7787]
[1750685641433,2.3513,133.26,133.16,7.5067]
[1750685641639,2.3513,133.26,133.15,19.79380205]
[1750685641833,19.79380205,133.22,133.12,2.33]
[1750685642034,51.96,133.21,133.12,2.33]
[1750685642233,51.96,133.22,133.13,19.79380205]
[1750685642638,19.79380205,133.21,133.12,2.33]
[1750685643137,4.7424,133.22,133.12,2.33]
[1750685643338,24.53620205,133.22,133.12,22.12380205]
[1750685643535,24.53620205,133.22,133.1,700.34]
[1750685643536,7.5086,133.14,133.1,7.5105]
[1750685643835,51.96,133.17,133.06,76.37560205]
[1750685644036,4.7424,133.22,133.12,19.79380205]
[1750685644253,51.96,133.21,133.12,19.79380205]
[1750685644436,71.75380205,133.21,133.12,19.79380205]
[1750685644638,7.5055,133.19,133.12,19.79380205]
[1750685644838,51.96,133.21,133.12,19.79380205]
[1750685645341,51.96,133.21,133.17,7.5065]
[1750685645541,51.96,133.21,133.13,2.4193]
[1750685646039,648.36,133.25,133.14,51.96]
[1750685646241,19.79380205,133.23,133.14,51.96]
[1750685646542,51.96,133.24,133.15,81.79380205]
[1750685646730,648.36,133.25,133.17,19.79380205]
[1750685646930,51.96,133.3,133.21,19.79380205]
[1750685647129,74.06310205,133.31,133.21,19.79380205]
[1750685647333,7.5001,133.29,133.21,19.79380205]
[1750685647531,74.06310205,133.31,133.21,19.79380205]
[1750685647734,7.4996,133.3,133.26,7.501]
[1750685647930,54.2693,133.31,133.22,51.96]
[1750685648142,74.06310205,133.31,133.23,4.8007]
[1750685648537,51.96,133.31,133.24,19.79380205]
[1750685648736,650.9457,133.35,133.23,4.8007]
[1750685648737,7.4983,133.32,133.23,7.129]
[1750685648936,52.56,133.34,133.25,19.79380205]
[1750685649332,7.4983,133.32,133.27,19.79380205]
[1750685649533,52.56,133.34,133.27,19.79380205]
[1750685650332,7.4977,133.33,133.29,7.4997]
[1750685650533,52.56,133.34,133.27,19.79380205]
[1750685650934,52.56,133.34,133.32,7.4978]
[1750685651240,169.82,133.37,133.29,19.79380205]
[1750685651445,57.4259,133.39,133.31,19.79380205]
[1750685651846,57.4259,133.39,133.3,52.54]
[1750685651847,57.4259,133.39,133.33,19.79380205]
[1750685652046,54.9641,133.39,133.33,19.79380205]
[1750685652247,54.9641,133.39,133.31,7.2534]
[1750685652445,7.4948,133.38,133.35,7.4963]
[1750685652646,52.54,133.39,133.33,19.79380205]
[1750685652842,91.01678287,133.4,133.31,7.2534]
[1750685652843,52.54,133.43,133.37,19.79380205]
[1750685653245,52.54,133.43,133.34,52.54]
[1750685653246,52.54,133.43,133.35,19.79380205]
[1750685653547,60.0321,133.43,133.39,7.4938]
[1750685653744,52.54,133.43,133.35,19.79380205]
[1750685653945,52.54,133.43,133.34,72.33380205]
[1750685654249,52.54,133.43,133.36,19.79380205]
[1750685654742,19.79380205,133.42,133.31,7.2534]
[1750685654947,19.79380205,133.4,133.31,27.04720205]
[1750685655137,52.52,133.39,133.31,27.04720205]
[1750685655342,7.4955,133.37,133.33,7.497]
[1750685655646,52.52,133.39,133.31,27.04720205]
[1750685655847,52.52,133.39,133.33,19.79380205]
[1750685656342,52.52,133.39,133.29,648.28]
[1750685656749,7.496,133.36,133.32,7.4979]
[1750685656944,72.31380205,133.35,133.25,72.31380205]
[1750685657143,54.8921,133.35,133.27,19.79380205]
[1750685657340,7.4973,133.34,133.3,7.4989]
[1750685657943,54.8921,133.35,133.32,7.4981]
[1750685658246,52.52,133.35,133.29,19.79380205]
[1750685658440,7.4971,133.34,133.3,7.499]
[1750685658637,72.31380205,133.35,133.26,19.79380205]
[1750685659049,2.3504,133.38,133.3,19.79380205]
[1750685659245,2.3504,133.38,133.32,19.79380205]
[1750685659442,60.014,133.4,133.36,7.4958]
[1750685659642,60.014,133.4,133.34,19.79380205]
[1750685659643,52.52,133.4,133.34,19.79380205]
[1750685659946,60.0138,133.4,133.34,19.79380205]
[1750685660151,52.52,133.4,133.34,19.79380205]
[1750685660551,60.014,133.4,133.36,7.4953]
[1750685660751,52.52,133.4,133.36,7.4953]
[1750685661052,7.4944,133.39,133.34,19.79380205]
[1750685661456,52.52,133.4,133.34,19.79380205]
[1750685662350,7.4946,133.39,133.35,7.4961]
[1750685662546,52.52,133.4,133.35,7.4961]
[1750685662855,7.4952,133.38,133.33,72.31380205]
[1750685663046,52.52,133.4,133.33,52.52]
[1750685663446,7.4948,133.38,133.34,7.4967]
[1750685663744,52.52,133.4,133.34,19.79380205]
[1750685663944,52.52,133.4,133.35,7.4961]
[1750685664251,52.52,133.4,133.33,52.52]
[1750685664548,52.52,133.4,133.33,72.31380205]
[1750685664948,52.52,133.4,133.31,19.79380205]
[1750685665147,72.31380205,133.4,133.31,19.79380205]
[1750685665451,7.4957,133.37,133.33,7.4974]
[1750685665751,72.31380205,133.4,133.33,7.4974]
[1750685666648,52.52,133.4,133.31,19.79380205]
[1750685667049,52.52,133.4,133.34,7.497]
[1750685667243,52.52,133.4,133.31,19.79380205]
[1750685667447,52.52,133.4,133.33,19.79380205]
[1750685667845,52.52,133.4,133.29,72.29380205]
[1750685667846,52.52,133.4,133.35,19.79380205]
[1750685668052,52.52,133.4,133.29,72.29380205]
[1750685668053,57.1739,133.44,133.37,19.79380205]
[1750685668249,7.4928,133.42,133.37,19.79380205]
[1750685668649,57.1739,133.44,133.39,7.4938]
[1750685668849,57.1739,133.44,133.35,19.79380205]
[1750685669050,57.1739,133.44,133.36,7.4954]
[1750685669051,19.79380205,133.42,133.36,7.4954]
[1750685669356,19.79380205,133.42,133.33,72.29380205]
[1750685669655,19.79380205,133.42,133.35,7.496]
[1750685669854,19.79380205,133.42,133.33,72.29380205]
[1750685670457,57.1739,133.44,133.31,19.79380205]
[1750685670458,19.79380205,133.4,133.31,19.79380205]
[1750685670644,54.9376,133.39,133.31,19.79380205]
[1750685670848,54.9376,133.39,133.33,7.4971]
[1750685671048,7.4962,133.36,133.33,7.4971]
[1750685671451,7.4964,133.35,133.33,7.4971]
[1750685671651,54.9376,133.39,133.31,19.79380205]
[1750685672052,7.4955,133.37,133.31,19.79380205]
[1750685672251,54.9376,133.39,133.33,19.79380205]
[1750685672452,52.5,133.39,133.33,19.79380205]
[1750685672647,52.5,133.39,133.36,7.4958]
[1750685672848,52.5,133.39,133.33,19.79380205]
[1750685673057,7.4954,133.37,133.33,19.79380205]
[1750685673250,52.5,133.39,133.34,7.4967]
[1750685673547,59.9944,133.39,133.33,19.79380205]
[1750685673747,52.5,133.39,133.34,7.4967]
[1750685674058,52.5,133.39,133.33,19.79380205]
[1750685674457,72.29380205,133.39,133.29,19.79380205]
[1750685674664,72.29380205,133.39,133.28,19.79380205]
[1750685674959,52.5,133.39,133.32,19.79380205]
[1750685675153,7.496,133.36,133.32,19.79380205]
[1750685675348,7.496,133.36,133.27,7.0895]
[1750685675349,52.5,133.39,133.34,19.79380205]
[1750685675547,52.5,133.39,133.27,22.0905]
[1750685675853,72.29380205,133.39,133.29,19.79380205]
[1750685676258,7.4974,133.34,133.3,7.4988]
[1750685676456,19.79380205,133.37,133.3,7.4988]
[1750685676656,4.8121,133.36,133.3,7.4988]
[1750685676857,7.4973,133.34,133.3,7.4988]
[1750685677058,4.8121,133.36,133.31,7.4987]
[1750685677255,7.4969,133.35,133.29,19.79380205]
[1750685677453,2.3606,133.36,133.29,19.79380205]
[1750685678262,2.3606,133.36,133.33,7.4975]
[1750685678563,2.3606,133.36,133.29,19.79380205]
[1750685678858,50.66,133.42,133.33,19.79380205]
[1750685679160,2.3184,133.42,133.35,19.79380205]
[1750685679362,2.2759,133.45,133.37,19.79380205]
[1750685679759,2.2759,133.45,133.43,7.4917]
[1750685680061,52.9784,133.46,133.39,19.79380205]
[1750685680259,2.3184,133.46,133.39,19.79380205]
[1750685680458,2.3184,133.46,133.39,70.45380205]
[1750685680858,2.3184,133.46,133.39,50.66]
[1750685681060,2.3184,133.46,133.39,70.45380205]
[1750685681261,22.11220205,133.46,133.36,4.9069]
[1750685681455,2.3184,133.46,133.38,19.79380205]
[1750685682460,7.4911,133.45,133.4,19.79380205]
[1750685682662,2.3184,133.46,133.4,19.79380205]
[1750685682861,7.4912,133.45,133.4,19.79380205]
[1750685683061,2.3184,133.46,133.41,7.4928]
[1750685683265,2.3184,133.46,133.39,50.66]
[1750685683664,2.3184,133.46,133.41,7.4927]
[1750685683865,647.9,133.47,133.4,19.79380205]
[1750685684261,647.9,133.47,133.42,7.492]
[1750685684455,7.4911,133.45,133.42,7.492]
[1750685684661,647.9,133.47,133.4,19.79380205]
[1750685685263,647.9,133.47,133.43,7.4916]
[1750685686174,7.4908,133.45,133.42,7.4922]
[1750685686362,647.9,133.47,133.42,7.4922]
[1750685686763,647.9,133.47,133.43,7.4918]
[1750685686963,647.9,133.47,133.42,19.79380205]
[1750685687164,7.4898,133.47,133.42,19.79380205]
[1750685687365,50.64,133.51,133.44,19.79380205]
[1750685687864,50.64,133.51,133.44,7.4912]
[1750685688064,50.64,133.51,133.42,19.79380205]
[1750685688366,50.64,133.51,133.44,19.79380205]
[1750685688565,2.5086,133.52,133.46,19.79380205]
[1750685688871,698.02,133.54,133.5,7.4875]
[1750685689071,50.64,133.56,133.5,19.79380205]
[1750685689569,19.79380205,133.59,133.48,2.449]
[1750685689759,19.79380205,133.55,133.47,19.79380205]
[1750685689960,50.62,133.54,133.47,19.79380205]
[1750685690163,18.75763727,133.59,133.47,19.79380205]
[1750685690164,50.62,133.56,133.47,19.79380205]
[1750685690363,50.62,133.56,133.49,19.79380205]
[1750685690968,185.21380205,133.58,133.51,19.79380205]
[1750685690969,165.42,133.58,133.51,19.79380205]
[1750685691162,647.38,133.61,133.55,19.79380205]
[1750685691868,7.4834,133.59,133.55,19.79380205]
[1750685692068,7.4834,133.59,133.47,26.68496452]
[1750685692069,19.79380205,133.61,133.48,50.62]
[1750685692264,8.13024547,133.6,133.5,19.79380205]
[1750685692462,5.70794547,133.59,133.55,7.4852]
[1750685692669,2.4223,133.6,133.48,50.62]
[1750685692866,7.4832,133.59,133.54,19.79380205]
[1750685693069,7.4832,133.59,133.56,7.4842]
[1750685693368,5.71611855,133.61,133.54,19.79380205]
[1750685693573,5.71611855,133.61,133.55,19.79380205]
[1750685693776,216.02,133.62,133.55,19.79380205]
[1750685694167,5.7032124,133.61,133.53,22.24590205]
[1750685694769,5.7032124,133.61,133.47,19.79380205]
[1750685694770,28.52152873,133.61,133.47,2.4784]
[1750685694966,7.4857,133.55,133.5,19.79380205]
[1750685695166,50.6,133.54,133.44,6.90888625]
[1750685695369,50.6,133.53,133.45,19.79380205]
[1750685695576,50.6,133.53,133.46,7.4901]
[1750685695771,70.39380205,133.53,133.43,4.7616]
[1750685695968,7.49,133.47,133.43,4.7616]
[1750685696170,70.39380205,133.53,133.43,2.3126]
[1750685696371,19.79380205,133.49,133.4,19.79380205]
[1750685696570,52.9105,133.48,133.39,50.6]
[1750685696776,52.9105,133.48,133.42,7.4925]
[1750685697077,7.4911,133.45,133.42,7.4925]
[1750685697274,52.9105,133.48,133.43,7.4918]
[1750685697578,50.6,133.48,133.42,19.79380205]
[1750685697784,50.6,133.48,133.44,7.4911]
[1750685698078,50.6,133.48,133.42,19.79380205]
[1750685698379,165.36,133.5,133.45,7.4905]
[1750685698567,7.4889,133.49,133.42,19.79380205]
[1750685698770,7.4889,133.49,133.39,50.6]
[1750685698771,165.36,133.5,133.44,19.79380205]
[1750685698979,50.6,133.51,133.44,19.79380205]
[1750685699571,7.4886,133.49,133.44,19.79380205]
[1750685699771,50.6,133.51,133.43,50.6]
[1750685699971,50.6,133.51,133.44,7.4911]
[1750685700176,19.79380205,133.5,133.41,19.79380205]
[1750685700377,19.79380205,133.48,133.39,50.6]
[1750685700572,50.6,133.47,133.4,19.79380205]
[1750685700773,50.6,133.48,133.4,19.79380205]
[1750685700981,50.6,133.48,133.39,50.6]
[1750685701177,7.4897,133.47,133.4,19.79380205]
[1750685701376,50.6,133.48,133.4,19.79380205]
[1750685701572,50.6,133.48,133.39,50.6]
[1750685701768,7.4911,133.45,133.38,19.79380205]
[1750685701973,50.6,133.48,133.38,19.79380205]
[1750685702180,7.4911,133.45,133.38,19.79380205]
[1750685702481,50.6,133.48,133.4,19.79380205]
[1750685702675,50.6,133.48,133.42,19.79380205]
[1750685702874,167.5905,133.53,133.46,7.4898]
[1750685702875,50.6,133.51,133.46,7.4898]
[1750685703078,50.6,133.51,133.44,19.79380205]
[1750685703975,50.6,133.51,133.5,7.488]
[1750685704177,50.6,133.51,133.46,19.79380205]
[1750685704376,58.0878,133.51,133.46,19.79380205]
[1750685704688,58.0878,133.51,133.48,7.4891]
[1750685704978,50.6,133.51,133.46,19.79380205]
[1750685705178,50.6,133.51,133.4,56.72888625]
[1750685705479,50.6,133.51,133.39,14.9882]
[1750685705480,19.79380205,133.48,133.39,19.79380205]
[1750685705686,49.82,133.47,133.39,19.79380205]
[1750685707177,49.82,133.49,133.41,19.79380205]
[1750685707377,49.82,133.49,133.43,19.79380205]
[1750685708380,49.82,133.52,133.45,19.79380205]
[1750685708580,49.82,133.52,133.42,69.2343]
[1750685708781,49.82,133.52,133.46,19.79380205]
[1750685708981,49.82,133.52,133.44,19.79380205]
[1750685709182,57.3072,133.52,133.44,19.79380205]
[1750685709480,49.82,133.52,133.44,19.79380205]
[1750685709780,7.4883,133.5,133.46,7.4897]
[1750685709987,49.82,133.52,133.46,7.4897]
[1750685710487,49.82,133.52,133.44,19.79380205]
[1750685710689,7.4878,133.51,133.44,19.79380205]
[1750685710990,49.82,133.52,133.46,19.79380205]
[1750685711183,2.4132,133.54,133.48,19.79380205]
[1750685711380,69.61380205,133.58,133.48,19.79380205]
[1750685711580,19.79380205,133.56,133.48,19.79380205]
[1750685711798,2.3014,133.57,133.48,19.79380205]
[1750685711992,22.09520205,133.57,133.48,19.79380205]
[1750685712285,22.09520205,133.57,133.5,7.4877]
[1750685712487,2.3014,133.57,133.48,19.79380205]
[1750685713286,7.485,133.56,133.48,19.79380205]
[1750685713484,7.485,133.56,133.45,49.82]
[1750685713485,52.3055,133.58,133.5,19.79380205]
[1750685713694,49.82,133.58,133.52,19.79380205]
[1750685713891,49.82,133.58,133.5,22.29040205]
[1750685714186,49.82,133.58,133.51,19.79380205]
[1750685714487,49.82,133.61,133.53,19.79380205]
[1750685714696,49.82,133.61,133.51,22.23640205]
[1750685714888,19.79380205,133.6,133.51,2.4426]
[1750685715082,19.79380205,133.58,133.5,2.4966]
[1750685715292,49.82,133.57,133.5,2.4966]
[1750685715490,49.82,133.57,133.5,7.4876]
[1750685715690,2.404,133.56,133.5,7.4876]
[1750685715891,2.404,133.56,133.49,72.07730205]
[1750685716090,2.404,133.56,133.51,7.4871]
[1750685716390,2.404,133.56,133.46,2.4426]
[1750685716594,19.79380205,133.55,133.45,29.78100205]
[1750685716895,19.79380205,133.53,133.45,2.4966]
[1750685717195,49.8,133.53,133.45,22.29040205]
[1750685717497,49.8,133.53,133.47,19.79380205]
[1750685717892,2.404,133.56,133.48,49.8]
[1750685718093,7.4856,133.55,133.49,19.79380205]
[1750685718288,2.404,133.56,133.49,19.79380205]
[1750685718492,49.8,133.58,133.51,19.79380205]
[1750685718693,7.4843,133.57,133.51,19.79380205]
[1750685718887,69.59380205,133.58,133.49,19.79380205]
[1750685719092,7.485,133.56,133.49,19.79380205]
[1750685719306,7.485,133.56,133.52,7.4865]
[1750685719896,7.4852,133.55,133.51,7.4869]
[1750685720489,49.8,133.58,133.51,19.79380205]
[1750685720490,7.4844,133.57,133.51,19.79380205]
[1750685720696,49.8,133.6,133.53,19.79380205]
[1750685721091,7.4832,133.59,133.53,19.79380205]
[1750685721403,49.8,133.6,133.53,19.79380205]
[1750685721700,701.5254,133.64,133.55,19.79380205]
[1750685722992,696.74,133.64,133.57,19.79380205]